bitfinex/quotes_SOLUSD_20250731
["timestamp","ask_amount","ask_price","bid_price","bid_amount"]
[1753990660731,40.92,176.13,176.11,15.43389028]
[1753990660939,40.98,176.13,176.12,15.43389028]
[1753990661382,40.98,176.13,176.08,6.38909991]
[1753990661658,40.98,176.13,176.11,15.43389028]
[1753990661863,40.98,176.13,176.12,15.43389028]
[1753990662231,40.98,176.16,176.12,15.43389028]
[1753990662459,40.98,176.16,176.15,15.43389028]
[1753990662660,41.64,176.16,176.14,15.43389028]
[1753990662861,1.22689342,176.15,176.09,22.46359816]
[1753990663042,1.22689342,176.15,176.13,15.43389028]
[1753990663244,0.66,176.15,176.09,22.46359816]
[1753990663557,0.66,176.15,176.13,15.43389028]
[1753990663760,0.66,176.15,176.09,5.67891419]
[1753990664062,16.0007837,176.14,176.09,15.43389028]
[1753990664361,0.66,176.13,176.09,15.43389028]
[1753990664532,41.64,176.12,176.09,15.43389028]
[1753990664738,41.64,176.12,176.1,0.06]
[1753990665173,41.64,176.12,176.11,15.43389028]
[1753990665174,40.98,176.12,176.11,15.43389028]
[1753990665547,0.66,176.16,176.11,15.43389028]
[1753990665751,40.98,176.15,176.14,15.43389028]
[1753990666657,0.03,176.17,176.14,15.43389028]
[1753990666857,0.66,176.16,176.12,10.93246727]
[1753990667044,0.66,176.15,176.12,10.93246727]
[1753990667247,0.59689342,176.17,176.14,10.93246727]
[1753990667454,1.25689342,176.17,176.14,10.93246727]
[1753990668960,0.03,176.17,176.16,10.93246727]
[1753990669140,41.01,176.17,176.16,10.93246727]
[1753990670265,41.01,176.17,176.14,5.6772288]
[1753990670464,41.01,176.17,176.16,10.93246727]
[1753990672189,41.01,176.17,176.16,11.64246727]
[1753990672345,0.03,176.17,176.16,17.31912485]
[1753990673653,0.03,176.17,176.13,0.56776244]
[1753990673654,0.03,176.17,176.14,5.67725705]
[1753990673871,0.03,176.17,176.16,10.93246727]
[1753990674676,0.03,176.17,176.15,10.93246727]
[1753990674882,0.03,176.17,176.11,0.06]
[1753990674883,0.03,176.17,176.16,10.93246727]
[1753990675653,0.69,176.17,176.11,0.62782692]
[1753990675874,1.25689342,176.17,176.13,10.93246727]
[1753990676063,0.66,176.16,176.12,10.93246727]
[1753990676272,12.15936069,176.15,176.11,0.06]
[1753990676484,10.93246727,176.13,176.11,0.06]
[1753990676666,51.89246727,176.12,176.11,0.06]
[1753990676991,58.23041412,176.12,176.11,0.06]
[1753990677588,32.33688151,176.16,176.11,10.99246727]
[1753990677797,41.54689342,176.15,176.12,10.93246727]
[1753990677965,40.98,176.15,176.13,10.93246727]
[1753990678164,40.98,176.15,176.14,10.93246727]
[1753990678461,52.57246727,176.15,176.11,0.06]
[1753990678669,10.93246727,176.12,176.11,0.06]
[1753990679084,12.15936069,176.12,176.11,0.06]
[1753990680467,0.56689342,176.12,176.11,10.99246727]
[1753990680783,40.98,176.13,176.11,10.99246727]
[1753990680983,40.98,176.13,176.12,10.93246727]
[1753990681696,40.98,176.13,176.11,0.06]
[1753990681697,52.57246727,176.13,176.11,0.06]
[1753990681879,1.22689342,176.12,176.11,0.06]
[1753990682384,41.54689342,176.13,176.11,10.99246727]
[1753990682694,41.54689342,176.13,176.11,0.06]
[1753990682873,41.54689342,176.13,176.11,10.99246727]
[1753990683072,40.98,176.13,176.12,10.93246727]
[1753990683887,40.98,176.13,176.12,11.64246727]
[1753990684106,40.98,176.13,176.12,10.93246727]
[1753990684399,41.66,176.13,176.11,0.06]
[1753990684602,4.70029353,176.12,176.11,0.06]
[1753990684974,5.38029353,176.12,176.11,0.06]
[1753990685294,14.7773282,176.12,176.11,0.06]
[1753990685467,29.84282608,176.12,176.11,0.06]
[1753990687090,29.84723182,176.12,176.11,0.06]
[1753990688079,36.20840282,176.12,176.11,0.06]
[1753990688469,29.84723182,176.12,176.11,0.06]
[1753990689977,16.78468397,176.11,176.1,0.06]
[1753990690295,26.0,176.08,175.99,10.93246727]
[1753990690465,10.93246727,176.05,175.99,10.93246727]
[1753990690666,10.93246727,176.05,175.95,16.78468397]
[1753990690667,10.93246727,176.01,175.96,10.93246727]
[1753990690881,10.93246727,176.01,175.95,0.68]
[1753990690882,52.51936069,176.0,175.95,0.68]
[1753990691094,10.93246727,175.99,175.94,0.1]
[1753990691299,17.18193986,175.98,175.94,0.1]
[1753990691599,41.02,175.97,175.94,0.1]
[1753990691900,0.56689342,175.96,175.94,0.1]
[1753990693097,0.56689342,175.96,175.95,10.93246727]
[1753990693700,0.56689342,175.96,175.94,0.1]
[1753990694399,0.56689342,175.96,175.94,11.03246727]
[1753990694598,0.56689342,175.96,175.94,0.1]
[1753990694791,0.56689342,175.96,175.94,11.03246727]
[1753990694989,0.56689342,175.96,175.94,0.1]
[1753990695172,12.17936069,175.96,175.94,0.1]
[1753990695378,11.61246727,175.95,175.94,0.1]
[1753990695577,11.49936069,175.96,175.94,0.1]
[1753990695799,17.18249282,175.96,175.94,0.1]
[1753990695980,0.56689342,175.96,175.94,11.03246727]
[1753990696507,0.56689342,175.96,175.95,10.93246727]
[1753990696806,41.02,175.97,175.95,11.61246727]
[1753990697022,41.04,175.96,175.95,0.68]
[1753990697195,5.68212815,176.0,175.95,0.68]
[1753990697196,0.56689342,176.03,175.95,11.61246727]
[1753990697376,41.04,176.02,175.96,6.36310979]
[1753990697581,41.04,176.02,176.01,10.93246727]
[1753990698390,26.56689342,176.05,176.01,10.93246727]
[1753990698592,41.04,176.04,176.02,10.93246727]
[1753990698808,0.56689342,176.03,176.02,10.93246727]
[1753990699205,41.60689342,176.04,176.02,11.61246727]
[1753990699403,41.60689342,176.04,176.03,10.93246727]
[1753990700107,42.28689342,176.04,176.02,10.93246727]
[1753990700907,47.28752437,176.04,176.0,10.93246727]
[1753990701114,11.61246727,176.03,175.94,26.78]
[1753990701288,47.28752437,176.04,175.96,10.93246727]
[1753990701289,36.93246727,176.01,175.96,10.93246727]
[1753990701494,42.26689342,176.0,175.96,10.93246727]
[1753990701694,0.68,175.99,175.94,0.1]
[1753990701903,1.24689342,175.98,175.95,10.93246727]
[1753990702100,41.02,175.97,175.95,10.93246727]
[1753990702396,41.02,175.97,175.96,10.93246727]
[1753990702597,41.02,175.97,175.94,0.1]
[1753990702806,41.02,175.97,175.96,10.93246727]
[1753990703208,41.02,175.97,175.94,0.1]
[1753990703209,41.02,175.97,175.95,10.93246727]
[1753990703593,41.02,175.97,175.96,10.93246727]
[1753990704508,58.3153192,175.97,175.94,0.1]
[1753990704720,0.68,175.96,175.94,0.1]
[1753990704893,0.56689342,175.95,175.94,0.1]
[1753990705392,0.56689342,175.96,175.94,0.1]
[1753990705794,0.56689342,175.97,175.95,10.93246727]
[1753990705990,41.02,175.96,175.95,10.93246727]
[1753990706621,41.02,175.96,175.94,0.1]
[1753990706797,41.02,175.96,175.94,11.03246727]
[1753990707525,41.02,175.96,175.95,11.61246727]
[1753990707819,58.31571091,175.96,175.94,0.1]
[1753990708036,12.17936069,175.95,175.94,0.1]
[1753990708817,28.96404466,175.95,175.94,0.1]
[1753990709128,34.64747745,175.95,175.94,0.1]
[1753990709838,17.86279348,175.95,175.94,0.1]
[1753990710015,0.56689342,175.95,175.94,0.1]
[1753990710331,58.92279348,175.95,175.94,0.1]
[1753990710829,53.23936069,175.95,175.94,0.1]
[1753990711003,41.62689342,175.95,175.94,0.1]
[1753990711196,36.93246727,175.97,175.94,0.1]
[1753990711197,0.56689342,175.96,175.94,11.03246727]
[1753990711421,41.04,175.95,175.94,17.39622309]
[1753990712120,11.49936069,176.04,175.94,31.60561265]
[1753990712318,41.04,176.03,175.99,10.93246727]
[1753990712518,10.93246727,176.01,175.96,10.93246727]
[1753990712722,41.62689342,176.0,175.97,10.93246727]
[1753990713022,41.06,176.0,175.99,10.93246727]
[1753990713222,41.06,176.0,175.99,11.61246727]
[1753990713423,41.06,176.0,175.99,10.93246727]
[1753990713833,41.06,176.0,175.99,17.2946083]
[1753990714122,41.06,176.03,175.99,17.2946083]
[1753990714296,41.06,176.03,176.02,10.93246727]
[1753990714918,41.78,176.03,175.97,5.68248748]
[1753990715121,0.56689342,176.02,175.97,5.68248748]
[1753990715320,0.56689342,176.02,175.99,10.93246727]
[1753990717029,11.65246727,176.01,175.97,10.93246727]
[1753990717217,53.25936069,176.0,175.95,10.93246727]
[1753990717420,41.60689342,176.0,175.96,5.68310979]
[1753990717628,41.60689342,176.0,175.96,16.61557706]
[1753990717922,41.60689342,176.0,175.96,10.93246727]
[1753990718122,41.60689342,176.0,175.95,5.68334443]
[1753990718325,47.28882561,176.0,175.96,11.61246727]
[1753990718511,0.72,175.99,175.94,0.1]
[1753990718714,58.22129288,176.0,175.94,0.1]
[1753990718715,10.93246727,175.96,175.94,0.1]
[1753990718917,41.04,175.95,175.94,0.1]
[1753990720211,58.37590006,175.95,175.94,0.1]
[1753990722126,47.44343279,175.95,175.94,0.1]
[1753990722423,58.37590006,175.95,175.94,0.1]
[1753990722726,52.69246727,175.95,175.94,0.1]
[1753990722903,0.56689342,175.97,175.94,11.71246727]
[1753990723104,41.26,175.96,175.95,0.68]
[1753990723413,0.56689342,176.0,175.95,11.61246727]
[1753990723617,41.28,175.98,175.94,0.1]
[1753990723922,41.28,175.98,175.95,0.68]
[1753990724229,41.28,175.98,175.96,0.68]
[1753990724733,41.28,175.98,175.97,10.93246727]
[1753990725039,41.28,175.98,175.94,0.1]
[1753990725212,41.28,175.98,175.96,10.93246727]
[1753990726629,41.28,175.98,175.97,10.93246727]
[1753990727830,41.28,175.98,175.94,0.78]
[1753990728036,41.28,175.98,175.96,10.93246727]
[1753990728336,41.28,175.98,175.97,10.93246727]
[1753990728829,6.24875609,176.0,175.97,10.93246727]
[1753990729030,41.34,175.99,175.98,0.68]
[1753990729235,41.34,175.99,175.98,11.61246727]
[1753990729618,0.56689342,176.02,175.98,11.61246727]
[1753990729802,41.3,176.02,176.01,10.93246727]
[1753990731917,26.56689342,176.06,176.01,17.29396263]
[1753990732111,41.26,176.05,176.02,0.68]
[1753990732309,41.26,176.05,176.04,10.93246727]
[1753990733146,41.26,176.05,175.99,14.20491782]
[1753990733147,41.98,176.05,175.99,0.68]
[1753990733313,41.98,176.05,175.96,0.68]
[1753990733314,10.93246727,176.03,175.96,0.68]
[1753990733511,56.46000655,176.02,175.97,10.93246727]
[1753990733734,42.52689342,176.02,175.98,10.93246727]
[1753990734722,42.52689342,176.02,175.99,10.93246727]
[1753990735549,15.37544815,176.01,175.96,10.93246727]
[1753990735717,12.21936069,176.0,175.97,0.06]
[1753990736031,41.2,175.99,175.97,0.06]
[1753990736533,0.56689342,175.98,175.97,0.06]
[1753990736733,51.76285744,175.98,175.97,0.06]
[1753990736926,51.76285744,175.98,175.94,0.1]
[1753990737134,49.78103284,175.97,175.94,11.03246727]
[1753990737332,0.56689342,175.96,175.94,11.03246727]
[1753990737531,0.56689342,175.96,175.94,0.1]
[1753990737849,0.72,175.95,175.94,0.1]
[1753990738447,11.49936069,175.96,175.94,0.1]
[1753990738652,17.90256476,175.96,175.94,0.1]
[1753990739138,0.56689342,175.96,175.94,0.1]
[1753990739318,41.76689342,175.97,175.94,0.1]
[1753990739520,42.48689342,175.97,175.94,0.1]
[1753990739737,58.38219903,175.97,175.94,0.1]
[1753990739945,0.72,175.96,175.94,0.1]
[1753990740123,1.28689342,175.95,175.94,0.1]
[1753990740310,12.21936069,175.95,175.94,0.1]
[1753990740515,21.62517872,175.95,175.94,0.1]
[1753990740749,51.76381992,175.95,175.94,0.1]
[1753990740934,25.76381992,175.95,175.94,0.1]
[1753990741661,42.78468397,175.92,175.91,0.06]
[1753990741821,42.78468397,175.92,175.81,0.74]
[1753990741822,16.78468397,175.91,175.81,0.74]
[1753990742024,8.42791986,175.9,175.83,10.99246727]
[1753990742224,10.93246727,175.88,175.83,10.99246727]
[1753990742445,0.56689342,175.87,175.83,10.99246727]
[1753990742649,41.2,175.86,175.83,10.99246727]
[1753990743146,52.85246727,175.86,175.83,0.06]
[1753990743319,41.92,175.86,175.83,0.06]
[1753990743521,42.48689342,175.86,175.83,0.06]
[1753990744055,41.76689342,175.86,175.83,10.99246727]
[1753990744582,41.2,175.86,175.83,10.99246727]
[1753990746046,41.2,175.86,175.83,0.06]
[1753990747021,41.88,175.86,175.83,0.06]
[1753990747216,41.2,175.86,175.83,0.06]
[1753990747422,41.2,175.86,175.84,10.93246727]
[1753990747639,41.2,175.86,175.83,10.99246727]
[1753990749122,41.2,175.86,175.84,10.93246727]
[1753990749322,41.88,175.86,175.83,0.06]
[1753990749523,42.44689342,175.86,175.83,0.06]
[1753990750145,48.13323482,175.86,175.83,0.06]
[1753990750889,59.06570209,175.86,175.83,0.06]
[1753990751789,48.13323482,175.86,175.83,0.06]
[1753990752277,47.45323482,175.86,175.83,0.06]
[1753990752581,41.76689342,175.86,175.83,0.06]
[1753990752796,0.56689342,175.88,175.85,11.69246727]
[1753990753080,41.12,175.87,175.85,0.76]
[1753990753378,41.12,175.87,175.86,10.93246727]
[1753990753763,41.12,175.87,175.85,0.76]
[1753990753764,47.48606892,175.87,175.85,0.06]
[1753990753960,1.24689342,175.86,175.85,0.06]
[1753990754557,12.17936069,175.86,175.85,0.06]
[1753990755072,1.24689342,175.86,175.85,0.06]
[1753990755274,6.25323482,175.86,175.85,0.06]
[1753990755571,17.86570209,175.86,175.85,0.06]
[1753990757364,60.65038606,175.86,175.85,0.06]
[1753990759089,16.78468397,175.84,175.83,0.06]
[1753990759296,42.78468397,175.82,175.81,0.06]
[1753990759590,16.78468397,175.81,175.8,0.06]
[1753990759758,28.39715124,175.81,175.8,0.06]
[1753990761264,34.08510983,175.81,175.8,0.06]
[1753990761673,42.78468397,175.79,175.78,0.06]
[1753990761982,84.41157739,175.79,175.78,0.06]
[1753990762293,85.09157739,175.79,175.78,0.06]
[1753990762459,96.02404466,175.79,175.78,0.06]
[1753990763155,84.24796641,175.79,175.78,0.06]
[1753990763360,84.92796641,175.79,175.78,0.06]
[1753990763563,16.78468397,175.78,175.76,0.1]
[1753990763787,52.55936069,175.77,175.76,0.1]
[1753990764055,79.23936069,175.77,175.76,0.1]
[1753990765375,84.92861369,175.77,175.76,0.1]
[1753990766298,101.71329766,175.77,175.76,0.1]
[1753990766795,75.71329766,175.77,175.76,1e-08]
[1753990766996,42.78468397,175.75,175.74,1e-08]
[1753990767283,100.46705166,175.75,175.74,1e-08]
[1753990767470,101.71394508,175.75,175.74,1e-08]
[1753990767658,60.65394508,175.75,175.74,1e-08]
[1753990767863,32.25679384,175.75,175.74,1e-08]
[1753990768278,84.22926111,175.75,175.74,1e-08]
[1753990768494,43.18926111,175.75,175.74,1e-08]
[1753990768705,78.53936069,175.75,175.74,1e-08]
[1753990768869,73.29679384,175.75,175.74,1e-08]
[1753990769066,84.22926111,175.75,175.74,1e-08]
[1753990769260,0.56689342,175.75,175.74,0.70000001]
[1753990769495,0.56689342,175.77,175.74,11.63246728]
[1753990769665,0.56689342,175.8,175.76,10.93246727]
[1753990769983,10.93246727,175.78,175.74,1e-08]
[1753990770179,52.55936069,175.77,175.74,1e-08]
[1753990770367,41.04,175.76,175.74,1e-08]
[1753990770572,0.56689342,175.75,175.74,0.70000001]
[1753990770875,0.56689342,175.75,175.74,1e-08]
[1753990771192,11.49936069,175.79,175.74,10.93246728]
[1753990771491,41.06,175.78,175.75,11.63246727]
[1753990771985,41.06,175.78,175.76,0.7]
[1753990772187,0.56689342,175.77,175.74,1e-08]
[1753990772367,10.93246727,175.75,175.74,1e-08]
[1753990772694,11.49936069,175.75,175.74,1e-08]
[1753990773281,17.18926111,175.75,175.74,1e-08]
[1753990773490,0.56689342,175.75,175.74,1e-08]
[1753990773702,0.56689342,175.75,175.74,0.70000001]
[1753990774001,26.0,175.79,175.74,11.63246728]
[1753990774285,41.04,175.78,175.77,10.93246727]
[1753990774470,41.04,175.78,175.77,11.60246727]
[1753990775468,41.04,175.78,175.77,0.67]
[1753990775774,41.04,175.78,175.74,5.69020264]
[1753990776085,47.29583678,175.78,175.75,11.60246727]
[1753990776286,41.60689342,175.78,175.75,11.60246727]
[1753990776489,41.60689342,175.78,175.76,11.60246727]
[1753990776871,41.04,175.78,175.76,11.60246727]
[1753990777276,41.60689342,175.78,175.76,0.67]
[1753990777598,10.93246727,175.77,175.74,1e-08]
[1753990777895,41.60689342,175.76,175.74,1e-08]
[1753990778994,10.93246727,175.75,175.74,1e-08]
[1753990779174,17.50468397,175.75,175.74,1e-08]
[1753990779491,38.2360159,175.75,175.74,1e-08]
[1753990779798,79.2960159,175.75,175.74,1e-08]
[1753990779981,79.29740257,175.75,175.74,1e-08]
[1753990780184,83.00145193,175.75,175.74,1e-08]
[1753990780379,79.29740257,175.75,175.74,1e-08]
[1753990780768,5.68990042,175.75,175.74,1e-08]
[1753990780980,57.68236769,175.75,175.74,1e-08]
[1753990781507,0.56689342,175.77,175.74,1e-08]
[1753990781676,41.06,175.75,175.74,0.67000001]
[1753990782666,41.06,175.75,175.74,1e-08]
[1753990782870,47.46990042,175.75,175.74,1e-08]
[1753990783192,58.40236769,175.75,175.74,1e-08]
[1753990784278,62.52683487,175.75,175.74,1e-08]
[1753990784793,57.68236769,175.75,175.74,1e-08]
[1753990785688,41.06,175.75,175.74,0.67000001]
[1753990785881,0.56689342,175.77,175.74,11.60246728]
[1753990786198,41.04,175.76,175.75,0.67]
[1753990786380,41.04,175.76,175.75,11.60246727]
[1753990787072,41.04,175.76,175.75,0.67]
[1753990787289,41.04,175.76,175.74,1e-08]
[1753990787775,41.04,175.76,175.75,0.67]
[1753990787976,41.04,175.76,175.75,11.60246727]
[1753990788176,0.56689342,175.79,175.75,11.60246727]
[1753990788407,41.06,175.78,175.76,11.60246727]
[1753990788601,41.06,175.78,175.76,0.67]
[1753990788805,41.06,175.78,175.75,10.93246727]
[1753990789107,41.06,175.78,175.76,11.60246727]
[1753990789899,41.06,175.78,175.77,11.60246727]
[1753990791101,41.06,175.78,175.77,17.29172027]
[1753990792378,41.06,175.78,175.77,51.29172027]
[1753990792590,0.03,175.8,175.78,16.78468397]
[1753990792909,0.03,175.8,175.79,54.28601181]
[1753990793097,0.03,175.8,175.79,60.64461753]
[1753990793686,0.03,175.8,175.79,40.35860572]
[1753990793888,0.03,175.8,175.79,34.0]
[1753990794100,41.05,175.8,175.79,44.93246727]
[1753990794718,41.05,175.8,175.79,45.60246727]
[1753990794882,0.03,175.8,175.79,51.29107299]
[1753990796105,0.03,175.8,175.79,34.0]
[1753990797206,0.03,175.8,175.78,10.93246727]
[1753990798192,0.03,175.8,175.79,10.93246727]
[1753990799087,0.03,175.8,175.78,10.93246727]
[1753990799286,0.03,175.8,175.79,11.60246727]
[1753990800414,1e-08,175.8,175.79,62.95601181]
[1753990800626,0.03,175.91,175.85,26.0]
[1753990800791,0.03,175.91,175.9,10.93246727]
[1753990800986,0.03,175.93,175.9,11.5009721]
[1753990801183,0.03,175.93,175.92,27.71715124]
[1753990801411,0.03,175.93,175.92,28.28559144]
[1753990801593,0.03,175.93,175.92,28.95559144]
[1753990802521,0.03,175.93,175.92,0.5684402]
[1753990802813,0.03,175.93,175.92,10.93246727]
[1753990803015,0.2,175.98,175.92,12.17090747]
[1753990803198,0.2,175.98,175.97,27.71715124]
[1753990803388,0.2,175.98,175.97,11.50074595]
[1753990803589,0.2,175.98,175.97,10.93246727]
[1753990804119,17.5349505,175.98,175.9,16.78468397]
[1753990804336,17.5349505,175.98,175.91,10.93246727]
[1753990804337,10.93246727,175.96,175.91,10.93246727]
[1753990804628,10.93246727,175.96,175.92,10.93246727]
[1753990804629,41.1,175.95,175.92,10.93246727]
[1753990805300,11.59246727,175.94,175.86,0.69]
[1753990805497,11.59246727,175.94,175.88,10.93246727]
[1753990805498,11.59246727,175.93,175.88,10.93246727]
[1753990805808,12.15936069,175.92,175.87,10.93246727]
[1753990805989,0.66,175.91,175.88,10.93246727]
[1753990806194,41.1,175.9,175.88,10.93246727]
[1753990806714,41.1,175.9,175.87,10.93246727]
[1753990807115,41.1,175.9,175.88,10.93246727]
[1753990808122,41.1,175.9,175.84,0.69]
[1753990808298,41.1,175.9,175.85,5.68662521]
[1753990808626,41.1,175.9,175.87,10.93246727]
[1753990808813,41.76,175.9,175.85,5.68662521]
[1753990809009,41.76,175.9,175.87,10.93246727]
[1753990809821,12.15936069,175.89,175.84,10.93246727]
[1753990810127,10.93246727,175.87,175.82,10.93246727]
[1753990810296,41.78,175.86,175.82,10.93246727]
[1753990810500,10.93246727,175.84,175.78,5.68874308]
[1753990810811,12.15936069,175.85,175.78,5.68874308]
[1753990811015,12.15936069,175.85,175.8,10.93246727]
[1753990811319,1.22689342,175.85,175.81,10.93246727]
[1753990811523,0.66,175.85,175.81,10.93246727]
[1753990811726,12.15936069,175.85,175.8,10.93246727]
[1753990811902,0.66,175.84,175.8,10.93246727]
[1753990812299,10.93246727,175.85,175.8,10.93246727]
[1753990812499,12.15936069,175.85,175.8,10.93246727]
[1753990812945,11.59246727,175.85,175.8,10.93246727]
[1753990813232,11.59246727,175.85,175.8,16.62066691]
[1753990813422,12.15936069,175.85,175.79,5.68860572]
[1753990813605,17.84606536,175.85,175.8,10.93246727]
[1753990813934,12.15936069,175.85,175.8,10.93246727]
[1753990814404,0.66,175.85,175.81,10.93246727]
[1753990815036,58.30570436,175.86,175.8,0.69]
[1753990815239,58.30570436,175.86,175.81,10.93246727]
[1753990815442,52.61936069,175.86,175.8,6.37799721]
[1753990815618,53.27936069,175.86,175.81,10.93246727]
[1753990817451,53.27936069,175.86,175.81,17.31036622]
[1753990817618,58.30574407,175.86,175.81,10.93246727]
[1753990817959,0.66,175.85,175.81,10.93246727]
[1753990818127,1.22689342,175.85,175.81,10.93246727]
[1753990818324,0.66,175.85,175.81,10.93246727]
[1753990818747,1.22689342,175.85,175.81,10.93246727]
[1753990818932,0.66,175.85,175.81,10.93246727]
[1753990819250,52.05246727,175.86,175.81,17.31041528]
[1753990819421,0.66,175.85,175.81,16.62041528]
[1753990819840,58.30576643,175.86,175.81,10.93246727]
[1753990820043,0.66,175.84,175.8,10.93246727]
[1753990820342,10.93246727,175.81,175.77,10.99246727]
[1753990820649,0.66,175.83,175.78,10.93246727]
[1753990820650,40.98,175.8,175.78,10.93246727]
[1753990820951,40.98,175.8,175.77,16.68164561]
[1753990821239,40.98,175.8,175.78,10.93246727]
[1753990822040,40.98,175.8,175.79,11.62246727]
[1753990822438,40.98,175.8,175.79,10.99246727]
[1753990822738,40.98,175.8,175.79,11.68246727]
[1753990823247,40.98,175.8,175.79,0.06]
[1753990825342,40.98,175.8,175.79,10.99246727]
[1753990826436,40.98,175.8,175.79,17.37107299]
[1753990827140,0.56689342,175.85,175.79,17.37107299]
[1753990827442,40.9,175.83,175.82,10.93246727]
[1753990830753,40.9,175.83,175.8,6.37828213]
[1753990830953,40.9,175.83,175.79,0.06]
[1753990831134,1.22689342,175.82,175.79,0.06]
[1753990831331,40.9,175.83,175.79,6.79217552]
[1753990831766,0.66,175.82,175.79,0.06]
[1753990832046,6.73217552,175.8,175.79,0.06]
[1753990832349,41.52,175.8,175.79,0.06]
[1753990832950,53.94045765,175.8,175.79,0.06]
[1753990833323,79.94045765,175.8,175.79,0.06]
[1753990833529,74.45002879,175.8,175.77,0.06]
[1753990833732,26.0,175.76,175.74,1e-08]
[1753990834032,40.9,175.75,175.74,1e-08]
[1753990834663,40.9,175.75,175.74,6.73217553]
[1753990834952,40.9,175.75,175.74,11.69792062]
[1753990835361,26.56689342,175.8,175.74,17.38806992]
[1753990835549,40.9,175.79,175.78,10.97792061]
[1753990835942,40.9,175.79,175.78,11.69792061]
[1753990836345,40.9,175.81,175.78,11.69792061]
[1753990836651,40.9,175.81,175.8,10.97792061]
[1753990837554,40.9,175.81,175.8,16.66620274]
[1753990838134,40.9,175.81,175.8,17.38620274]
[1753990838437,40.9,175.81,175.8,16.66620274]
[1753990838644,40.9,175.81,175.8,10.97792061]
[1753990840442,40.86,175.83,175.8,17.38620274]
[1753990840646,40.86,175.83,175.82,10.97792061]
[1753990840963,40.86,175.83,175.82,17.38555569]
[1753990841262,0.66,175.87,175.82,17.38555569]
[1753990841465,40.84,175.86,175.82,17.38555569]
[1753990842042,41.5,175.86,175.84,10.97792061]
[1753990843353,41.5,175.86,175.78,16.78468397]
[1753990843354,12.20481403,175.85,175.78,16.78468397]
[1753990843556,1.22689342,175.85,175.81,10.97792061]
[1753990843875,0.66,175.84,175.77,5.689253]
[1753990844080,41.36689342,175.83,175.81,0.06]
[1753990844571,0.66,175.82,175.81,0.06]
[1753990845062,17.32555569,175.82,175.81,0.06]
[1753990845437,5.68763508,175.82,175.81,0.06]
[1753990845633,17.32555569,175.82,175.81,0.06]
[1753990846638,6.34763508,175.82,175.81,0.06]
[1753990846853,17.32555569,175.82,175.81,0.06]
[1753990847639,26.56689342,175.84,175.81,11.03792061]
[1753990847843,40.8,175.83,175.81,11.03792061]
[1753990848759,41.46,175.83,175.81,0.06]
[1753990849158,12.20481403,175.82,175.81,0.06]
[1753990849474,25.77477543,175.82,175.81,0.06]
[1753990849642,25.11477543,175.82,175.81,0.06]
[1753990849843,25.77477543,175.82,175.81,0.06]
[1753990850458,14.79685482,175.82,175.81,0.06]
[1753990850766,41.36689342,175.83,175.81,11.75792061]
[1753990850954,40.8,175.83,175.82,10.97792061]
[1753990853158,45.20003191,175.83,175.81,0.06]
[1753990853357,41.46,175.83,175.81,0.06]
[1753990853564,41.46,175.83,175.81,11.03792061]
[1753990854574,40.8,175.83,175.81,11.03792061]
[1753990855370,40.8,175.83,175.82,10.97792061]
[1753990855574,40.8,175.83,175.82,0.72]
[1753990855767,40.8,175.83,175.82,11.69792061]
[1753990857468,40.8,175.83,175.82,17.38555569]
[1753990859754,40.8,175.83,175.82,16.66555569]
[1753990860154,40.8,175.83,175.82,10.97792061]
[1753990860355,61.86625488,175.83,175.81,0.06]
[1753990860554,15.94574442,175.82,175.81,0.06]
[1753990860771,41.94574442,175.82,175.81,0.06]
[1753990860975,26.0,175.79,175.75,0.06]
[1753990861169,10.97792061,175.76,175.75,0.06]
[1753990861383,10.97792061,175.77,175.75,0.06]